{"text_format":"1","workbook":"xlsx","n_sheets":3,"sheets":["Skills","Лист1","Лист2"],"not_rendered":{"charts":0,"images":0,"macros":1,"external_links":0,"defined_names":5,"comments":1,"pivot_tables":0},"unopened":[],"bounds":{"document_bytes":16777216,"sheet_cells":100000,"rows_first":2000,"rows_last":500,"rows_between":2000,"halvings":0,"cell_chars":16384,"cell_head_chars":4096},"cells_cut":0,"cells_raw":0,"read":"whole","date_system":"1900"}

{"sheet":"Skills","index":0,"n_rows":219,"n_cols":20,"rows_kept":219,"cut":false,"hidden":false,"merged":[[1,1,1,3],[2,1,2,3],[3,1,3,3],[4,1,4,3]]}
["OSKUSTE TABEL"]
[1,"Abistamisoskused"]
[2,"Rahuldavad oskused"]
[3,"Head oskused"]
[4,"Suurepärased oskused"]
["Name","Surename","Code","Department","JT43 - Insulation","Punkte tööoskuste eest","JT43 - Kerimispink","JT43 - Vormimispink","JT43 - Elektritest","JT43 - Käsi isoleerimine","JT43 - TH tools ","JT43 - Vana Micamation","JT43 - Uus Micamation","Hindamise kuupäev","JT67 - Exciter","Punkte tööoskuste eest","JT67 - Ergutus rootori paketi valmistus","JT67 - Ergutus rootori mähiste valmistus","JT67 - Ergutus rootori mähkimine","Hindamise kuupäev"]
[]
["Petrova","Irina",502837,"JT43","o",{"$f":"IF(D8=\"JT43\",IF(COUNTIF(G8:M8,3)+COUNTIF(G8:M8,4)<1,0,IF(COUNTIF(G8:M8,3)+COUNTIF(G8:M8,4)=1,2,IF(COUNTIF(G8:M8,3)+COUNTIF(G8:M8,4)>1,4,0))),IF(COUNTIF(G8:M8,2)+COUNTIF(G8:M8,3)+COUNTIF(G8:M8,4)=1,2,IF(COUNTIF(G8:M8,2)+COUNTIF(G8:M8,3)+COUNTIF(G8:M8,4)>1,4,0)))","v":0},null,null,null,null,null,null,null,"Dekreedis",null,{"$f":"IF(D8=\"JT67\",IF(COUNTIF(Q8:S8,3)+COUNTIF(Q8:S8,4)<1,0,IF(COUNTIF(Q8:S8,3)+COUNTIF(Q8:S8,4)=1,2,IF(COUNTIF(Q8:S8,3)+COUNTIF(Q8:S8,4)>1,4,0))),IF(COUNTIF(Q8:S8,2)+COUNTIF(Q8:S8,3)+COUNTIF(Q8:S8,4)>0,2,0))","v":0}]
["Fedotova","Aleksandra",502806,"JT43","o",0,null,null,null,null,null,null,null,"Dekreedis",null,0]
["Jermolina","Svetlana",502513,"JT43","o",4,null,null,null,4,3,4,4,"2016-03-02",null,0]
["Avdejev","Juri",502863,"JT53",null,0,null,null,null,null,null,null,null,null,null,0]
["Halin","Mihhail",502654,"JT53",null,0,null,null,null,null,null,null,null,null,null,0]
["Hodasevitš","Viktor",502827,"JT53",null,0,null,null,null,null,null,null,null,null,null,0]
["Kolessov","Yury",502802,"JT53",null,0,null,null,null,null,null,null,null,null,"x",2,2,null,null,"2015-03-19"]
["Kravtsov","Dmitri",502683,"JT53",null,0,null,null,null,null,null,null,null,null,null,0]
["Kravtšenko","Mihhail",502721,"JT53",null,0,null,null,null,null,null,null,null,null,"x",2,2,null,null,"2015-03-19"]
["Mustafajev","Dmitri",502835,"JT53",null,0,null,null,null,null,null,null,null,null,null,0]
["Raado","Eugen",502894,"JT53",null,0,null,null,null,null,null,null,null,null,null,0]
["Sivaev","Mikhail",502859,"JT53",null,0,null,null,null,null,null,null,null,null,null,0]
["Smirnov","Aleksei",502693,"JT53",null,0,null,null,null,null,null,null,null,null,null,0]
["Šilov","Rodion",502587,"JT53",null,0,null,null,null,null,null,null,null,null,null,0]
["Tšusov","Ruslan",502895,"JT53",null,0,null,null,null,null,null,null,null,null,null,0]
["Stetsko","Vladislav",502884,"JT53",null,0,null,null,null,null,null,null,null,null,"x",2,4,null,null,"2015-02-09"]
["Bogdanov","Ilja",502899,"JT54",null,0,null,null,null,null,null,null,null,null,null,0]
["Gramatovitš","Edvard",502594,"JT54",null,0,null,null,null,null,null,null,null,null,null,0]
["Kase","Aleksander",100065,"JT54",null,0,null,null,null,null,null,null,null,null,null,0]
["Obraztsov","Artjom",502896,"JT54",null,0,null,null,null,null,null,null,null,null,null,0]
["Pulkin","Vladimir",502739,"JT54",null,0,null,null,null,null,null,null,null,null,null,0]
["Skidan","Dmitri",502865,"JT54",null,0,null,null,null,null,null,null,null,null,null,0]
["Štšekin","Anatoli",502828,"JT54",null,0,null,null,null,null,null,null,null,null,null,0]
["Tšebotarjov","Aleksei",503327,"JT54",null,0,null,null,null,null,null,null,null,null,null,0]
["Beresnev","Dmitri",100094,"JT55",null,0,null,null,null,null,null,null,null,null,null,0]
["Glinskaja","Tatjana",900474,"JT55",null,0,null,null,null,null,null,null,null,null,null,0]
["Ivanov","Dmitri",900440,"JT55",null,0,null,null,null,null,null,null,null,null,null,0]
["Kornõsheva","Julija",900473,"JT55",null,0,null,null,null,null,null,null,null,null,null,0]
["Mõsljajeva","Jana",502550,"JT55",null,0,null,null,null,null,null,null,null,null,null,0]
["Shkarbanov","Valeri",900423,"JT55",null,0,null,null,null,null,null,null,null,null,null,0]
["Strelkov","Viktor",900466,"JT55",null,0,null,null,null,null,null,null,null,null,null,0]
["Zardiashvili","Ramaz",900420,"JT55",null,0,null,null,null,null,null,null,null,null,null,0]
["Raisp","Viktoria",100308,"JT55",null,0,null,null,null,null,null,null,null,null,null,0]
["Družinin","Nikolai",502856,"JT56",null,0,null,null,null,null,null,null,null,null,null,0]
["Pevtsov","Juri",502525,"JT56","x",4,4,null,4,null,null,null,null,"2014-05-30","x",2,null,3,3,"2016-01-25"]
["Pyshkaylo","Mikhail",900422,"JT59",null,0,null,null,null,null,null,null,null,null,null,0]
["Savitski","Igor",502614,"JT59",null,0,null,null,null,null,null,null,null,null,"x",2,3,null,null,"2014-03-11"]
["Starodubtsev","Andrei",502682,"JT59",null,0,null,null,null,null,null,null,null,null,null,0]
["Robert","Neggo",502851,"JT62",null,0,null,null,null,null,null,null,null,null,null,0]
["Abramov","Aleksandr",502584,"JT62",null,0,null,null,null,null,null,null,null,"2014-02-13",null,0]
["Dolski","Roman",502190,"JT62",null,0,null,null,null,null,null,null,null,"2014-02-13",null,0]
["Eismont","Aleksandr",506528,"JT62",null,0,null,null,null,null,null,null,null,"2014-02-13",null,0]
["Frolov","Andrei",502583,"JT62",null,0,null,null,null,null,null,null,null,"2014-02-13",null,0]
["Hvil","Sergei",503267,"JT62",null,0,null,null,null,null,null,null,null,"2014-02-13",null,0]
["Jakimenko","Juri",503225,"JT62",null,0,null,null,null,null,null,null,null,"2014-02-13",null,0]
["Kirik","Denis",502582,"JT62",null,0,null,null,null,null,null,null,null,"2014-02-13",null,0]
["Krivov","Igor",503063,"JT62",null,0,null,null,null,null,null,null,null,"2014-02-13",null,0]
["Kudrjavtsev","Valeri",503343,"JT62",null,0,null,null,null,null,null,null,null,"2014-02-13",null,0]
["Lazarev","Roman",503309,"JT62",null,0,null,null,null,null,null,null,null,"2014-02-13",null,0]
["Miljagin","Igor",502252,"JT62",null,0,null,null,null,null,null,null,null,"2014-02-13",null,0]
["Pron","Sergei",502218,"JT62",null,0,null,null,null,null,null,null,null,"2014-02-13",null,0]
["Titarenko","Anton",502743,"JT62",null,0,null,null,null,null,null,null,null,"2014-02-13",null,0]
["Titkov","Maksim",503357,"JT62",null,0,null,null,null,null,null,null,null,"2014-02-13",null,0]
["Tsentropov","Aleksandr",503347,"JT62",null,0,null,null,null,null,null,null,null,"2014-02-13",null,0]
["Abramenkov","Artjom",503239,"JT63",null,0,null,null,null,null,null,null,null,null,null,0]
["Amossov","Aleksei",503099,"JT63",null,0,null,null,null,null,null,null,null,null,null,0]
["Andrejev","Ilja",502843,"JT63",null,0,null,null,null,null,null,null,null,null,null,0]
["Berdnikov","Roman",502869,"JT63",null,0,null,null,null,null,null,null,null,null,null,0]
["Boiko","Fjodor",503336,"JT63",null,0,null,null,null,null,null,null,null,null,null,0]
["Budin","Dmitri",502163,"JT63",null,0,null,null,null,null,null,null,null,null,null,0]
["Denissov","Oleg",503295,"JT63",null,0,null,null,null,null,null,null,null,null,null,0]
["Gorbunov","Stanislav",502860,"JT63",null,0,null,null,null,null,null,null,null,null,null,0]
["Grygoriev","Volodymyr",502734,"JT63",null,0,null,null,null,null,null,null,null,null,null,0]
["Ivanov","Vladimir",503182,"JT63",null,0,null,null,null,null,null,null,null,null,null,0]
["Jarõgin","Valeri",503003,"JT63",null,{"$f":"IF(D72=\"JT43\",IF(COUNTIF(G72:M72,3)+COUNTIF(G72:M72,4)<1,0,IF(COUNTIF(G72:M72,3)+COUNTIF(G72:M72,4)=1,2,IF(COUNTIF(G72:M72,3)+COUNTIF(G72:M72,4)>1,4,0))),IF(COUNTIF(G72:M72,2)+COUNTIF(G72:M72,3)+COUNTIF(G72:M72,4)=1,2,IF(COUNTIF(G72:M72,2)+COUNTIF(G72:M72,3)+COUNTIF(G72:M72,4)>1,4,0)))","v":0},null,null,null,null,null,null,null,null,null,{"$f":"IF(D72=\"JT67\",IF(COUNTIF(Q72:S72,3)+COUNTIF(Q72:S72,4)<1,0,IF(COUNTIF(Q72:S72,3)+COUNTIF(Q72:S72,4)=1,2,IF(COUNTIF(Q72:S72,3)+COUNTIF(Q72:S72,4)>1,4,0))),IF(COUNTIF(Q72:S72,2)+COUNTIF(Q72:S72,3)+COUNTIF(Q72:S72,4)>0,2,0))","v":0}]
["Kolmakov","Igor",502249,"JT63",null,0,null,null,null,null,null,null,null,null,null,0]
["Kunttu","Vjatšeslav",502761,"JT63",null,0,null,null,null,null,null,null,null,null,null,0]
["Larionov","Jevgeni",503115,"JT63",null,0,null,null,null,null,null,null,null,null,null,0]
["Matjuk","Vjatšeslav",502600,"JT63",null,0,null,null,null,null,null,null,null,null,null,0]
["Metlov","Oleg",503272,"JT63",null,0,null,null,null,null,null,null,null,null,null,0]
["Mišin","Pavel",503231,"JT63",null,0,null,null,null,null,null,null,null,null,null,0]
["Pantjuhhov","Pavel",502576,"JT63",null,0,null,null,null,null,null,null,null,null,null,0]
["Prisjaznjuk","Aleksandr",502334,"JT63",null,0,null,null,null,null,null,null,null,null,null,0]
["Romanjuk","Jevgeni",502872,"JT63",null,0,null,null,null,null,null,null,null,null,null,0]
["Rõssev","Aleksandr",502757,"JT63",null,0,null,null,null,null,null,null,null,null,"x",2,null,null,2]
["Saare","Alo",502766,"JT63",null,0,null,null,null,null,null,null,null,null,null,0]
["Saveljev","Jevgeni",502363,"JT63",null,0,null,null,null,null,null,null,null,null,null,0]
["Sokerin","Vitali",502862,"JT63",null,0,null,null,null,null,null,null,null,null,null,0]
["Sokolov","Vladislav",503037,"JT63",null,0,null,null,null,null,null,null,null,null,null,0]
["Širjajev","Aleksei",503093,"JT63",null,0,null,null,null,null,null,null,null,null,null,0]
["Žmatšenko","Aleksandr",502599,"JT63",null,0,null,null,null,null,null,null,null,null,"x",2,null,null,2]
["Torpašev","Ilja",503198,"JT63",null,0,null,null,null,null,null,null,null,null,null,0]
["Tšikin","Maksim",502161,"JT63",null,0,null,null,null,null,null,null,null,null,null,0]
["Yugay","Eduard",502778,"JT63",null,0,null,null,null,null,null,null,null,null,null,0]
["Borodavka","Vadim ",100309,"JT63",null,0,null,null,null,null,null,null,null,null,null,0]
["Poddevalin","Valeri  ",100335,"JT63",null,0,null,null,null,null,null,null,null,null,null,0]
["Grušin","Boriss",502193,"JT64",null,0,null,null,null,null,null,null,null,null,null,0]
["Novikov","Artjom",502375,"JT64",null,0,null,null,null,null,null,null,null,null,null,0]
["Beltsov","Sergei",503057,"JT64",null,0,null,null,null,null,null,null,null,null,null,0]
["Fedotov","Sergei",503173,"JT64",null,0,null,null,null,null,null,null,null,null,null,0]
["Holodov","Andrei",502374,"JT64",null,0,null,null,null,null,null,null,null,null,null,0]
["Kissel","Igor",502297,"JT64",null,0,null,null,null,null,null,null,null,null,null,0]
["Kortśin","Igor",503025,"JT64",null,0,null,null,null,null,null,null,null,null,null,0]
["Kotšemazov","Vjatšeslav",502366,"JT64",null,0,null,null,null,null,null,null,null,null,null,0]
["Kunttu","Jüri",502280,"JT64",null,0,null,null,null,null,null,null,null,null,null,0]
["Kuritsõn","Stanislav",502111,"JT64",null,0,null,null,null,null,null,null,null,null,null,0]
["Lappolainen","Konstantin",502268,"JT64",null,0,null,null,null,null,null,null,null,null,null,0]
["Poljakov","Aleksei",502263,"JT64",null,0,null,null,null,null,null,null,null,null,null,0]
["Semjonov","Valeri",503356,"JT64",null,0,null,null,null,null,null,null,null,null,null,0]
["Shishkin","Mikhail",502159,"JT64",null,0,null,null,null,null,null,null,null,null,null,0]
["Shiyan","Igor",502264,"JT64",null,0,null,null,null,null,null,null,null,null,null,0]
["Skvortsov","Aleksei",502718,"JT64","x",2,3,null,null,null,null,null,null,"2014-06-13",null,0]
["Starodub","Viktor",503132,"JT64",null,0,null,null,null,null,null,null,null,null,null,0]
["Steklov","Gennadi",503177,"JT64",null,0,null,null,null,null,null,null,null,null,null,0]
["Tšusev","Vladimir",502277,"JT64",null,0,null,null,null,null,null,null,null,null,null,0]
["Dolzenko","Valeri",503369,"JT66",null,0,null,null,null,null,null,null,null,null,null,0]
["Dontśevskaja","Olga",502643,"JT66","x",2,null,null,null,3,null,null,null,"2016-01-07",null,0]
["Kriventsova","Marija",502642,"JT66","x",2,null,null,null,3,null,null,null,"2016-01-07",null,0]
["Dzabbarrov","Igor",502325,"JT66",null,0,null,null,null,null,null,null,null,null,null,0]
["Apuhtin","Stanislav",503076,"JT67","x",2,3,null,null,null,null,null,null,"2016-03-02","o",4,null,4,3,"2016-03-02"]
["Kosmatšjov","Jevgeni",502750,"JT67","x",4,2,null,2,null,null,null,null,"2016-03-02","o",4,null,4,4,"2016-03-02"]
["Krullo","Lauri",502314,"JT67",null,0,null,null,null,null,null,null,null,null,"o",4,1,4,4,"2016-03-02"]
["Aleksandrov","Sergei",502302,"JT68",null,0,null,null,null,null,null,null,null,null,null,0]
["Jakovlev","Valeri",503300,"JT68",null,0,null,null,null,null,null,null,null,null,null,0]
["Naumov","Dmitri",503323,"JT68",null,0,null,null,null,null,null,null,null,null,null,0]
["Startšuk","Aleksandr",502304,"JT68",null,0,null,null,null,null,null,null,null,null,null,0]
["Fokin","Artjom",502857,"JT69",null,0,null,null,null,null,null,null,null,null,null,0]
["Pavlov","Aleksei",502234,"JT69",null,0,null,null,null,null,null,null,null,null,null,0]
["Antonov","Sergei",503036,"JT70",null,0,null,null,null,null,null,null,null,null,null,0]
["Galitši","Jevgeni",503365,"JT70",null,0,null,null,null,null,null,null,null,null,null,0]
["Jablokov","Jüri",503314,"JT70",null,0,null,null,null,null,null,null,null,null,null,0]
["Kirejev","Aleksandr",503008,"JT70",null,0,null,null,null,null,null,null,null,null,null,0]
["Pastarnak","Juri",503322,"JT70",null,0,null,null,null,null,null,null,null,null,null,0]
["Pantjuhhov","Leonid",900213,"JT70",null,0,null,null,null,null,null,null,null,null,null,0]
["Yavlyanskiy","Sergey",502656,"JT70",null,0,null,null,null,null,null,null,null,null,null,0]
["Javljanski","Juri",502887,"JT72",null,0,null,null,null,null,null,null,null,null,null,0]
["Kolmakov","Deniss",502606,"JT72",null,0,null,null,null,null,null,null,null,null,null,0]
["Korobov","Juri",502890,"JT72",null,0,null,null,null,null,null,null,null,null,null,0]
["Kuklev","Sergei",502889,"JT72",null,{"$f":"IF(D136=\"JT43\",IF(COUNTIF(G136:M136,3)+COUNTIF(G136:M136,4)<1,0,IF(COUNTIF(G136:M136,3)+COUNTIF(G136:M136,4)=1,2,IF(COUNTIF(G136:M136,3)+COUNTIF(G136:M136,4)>1,4,0))),IF(COUNTIF(G136:M136,2)+COUNTIF(G136:M136,3)+COUNTIF(G136:M136,4)=1,2,IF(COUNTIF(G136:M136,2)+COUNTIF(G136:M136,3)+COUNTIF(G136:M136,4)>1,4,0)))","v":0},null,null,null,null,null,null,null,null,null,{"$f":"IF(D136=\"JT67\",IF(COUNTIF(Q136:S136,3)+COUNTIF(Q136:S136,4)<1,0,IF(COUNTIF(Q136:S136,3)+COUNTIF(Q136:S136,4)=1,2,IF(COUNTIF(Q136:S136,3)+COUNTIF(Q136:S136,4)>1,4,0))),IF(COUNTIF(Q136:S136,2)+COUNTIF(Q136:S136,3)+COUNTIF(Q136:S136,4)>0,2,0))","v":0}]
["Markov","Aleksandr",502620,"JT72",null,0,null,null,null,null,null,null,null,null,null,0]
["Kallas","Vassili",502210,"JT80",null,0,null,null,null,null,null,null,null,null,null,0]
["Komarin","Denis",503366,"JT80",null,0,null,null,null,null,null,null,null,null,null,0]
["Koroljov","Oleg",100330,"JT80",null,0,null,null,null,null,null,null,null,null,null,0]
["Kunevitš","Andrei",503052,"JT80",null,0,null,null,null,null,null,null,null,null,null,0]
["Ljaussov","Maksim",503367,"JT80",null,0,null,null,null,null,null,null,null,null,null,0]
["Matovits","Svjatoslav",502836,"JT80",null,0,null,null,null,null,null,null,null,null,null,0]
["Olev","Igor",503269,"JT80",null,0,null,null,null,null,null,null,null,null,null,0]
["Pustovalov","Kirill",502848,"JT80",null,0,null,null,null,null,null,null,null,null,null,0]
["Šabunevitš","Vitali",302009,"JT80",null,0,null,null,null,null,null,null,null,null,null,0]
["Võsumäe","Vahur",502598,"JT80",null,0,null,null,null,null,null,null,null,null,null,0]
["Baklanov","Juri",503151,"JT81",null,0,null,null,null,null,null,null,null,null,null,0]
["Ignatov","Roman",503226,"JT81",null,0,null,null,null,null,null,null,null,null,null,0]
["Larkov","Sergei",503122,"JT81",null,0,null,null,null,null,null,null,null,null,null,0]
["Mürkhain","Ermo",503035,"JT81",null,0,null,null,null,null,null,null,null,null,null,0]
["Sakaljuk","Andrei",502224,"JT81",null,0,null,null,null,null,null,null,null,null,null,0]
["Smirnov","Vitali",502215,"JT81",null,0,null,null,null,null,null,null,null,null,null,0]
["Taryshkin","Aleksandr",503210,"JT81",null,0,null,null,null,null,null,null,null,null,null,0]
["Tomaševits","Viktor",502271,"JT81",null,0,null,null,null,null,null,null,null,null,null,0]
["Tšernuhha","Mihhail",503244,"JT81",null,0,null,null,null,null,null,null,null,null,null,0]
["Tšikin","Igor",502267,"JT81",null,0,null,null,null,null,null,null,null,null,null,0]
["Rudakov","Sergei",100386,"JT81",null,0,null,null,null,null,null,null,null,null,null,0]
["Leheroo","Moonika",502720,"JT81",null,0,null,null,null,null,null,null,null,null,null,0]
["Afontsenkov","Aleksander",502876,"JT83",null,0,null,null,null,null,null,null,null,null,null,0]
["Ignatjev","Dmitri",503303,"JT83",null,0,null,null,null,null,null,null,null,null,null,0]
["Nikolski","Denis",503258,"JT83",null,0,null,null,null,null,null,null,null,null,null,0]
["Pajo","Peeter",503277,"JT83",null,0,null,null,null,null,null,null,null,null,null,0]
["Zibarov","Oleg",502897,"JT83",null,0,null,null,null,null,null,null,null,null,null,0]
["Toim","Aleksandr",502291,"JT83",null,0,null,null,null,null,null,null,null,null,null,0]
["Bogdanov","Pavel",506516,"JTBP",null,0,null,null,null,null,null,null,null,null,null,0]
["Gavron","Georgi",502679,"JTBP",null,0,null,null,null,null,null,null,null,null,null,0]
["Golovatõi","Deniss",502660,"JTBP",null,0,null,null,null,null,null,null,null,null,null,0]
["Golovatõi","Andrei",502772,"JTBP",null,0,null,null,null,null,null,null,null,null,null,0]
["Melnitsenko","Sergei",502883,"JTBP",null,0,null,null,null,null,null,null,null,null,null,0]
["Veltbach","Viktor",502661,"JTBP",null,0,null,null,null,null,null,null,null,null,null,0]
["Abrossimov","Pavel",502881,"JTMAN",null,0,null,null,null,null,null,null,null,null,null,0]
["Darmina","Irina",502632,"JTMAN",null,0,null,null,null,null,null,null,null,null,null,0]
["Krasnikova","Jelena",502609,"JTMAN",null,0,null,null,null,null,null,null,null,null,null,0]
["Maev","Alexander",503259,"JTMAN",null,0,null,null,null,null,null,null,null,null,null,0]
["Reinsalu","Aleksei",502223,"JTMAN",null,0,null,null,null,null,null,null,null,null,null,0]
["Suvorov","Roman",502327,"JTMAN",null,0,null,null,null,null,null,null,null,null,null,0]
["Šavarova","Tamara",502424,"JTMAN",null,0,null,null,null,null,null,null,null,null,null,0]
["Adomaitis","Emilio",502591,"JTSN",null,0,null,null,null,null,null,null,null,null,null,0]
["Bankov","Sergei",506506,"JTSN",null,0,null,null,null,null,null,null,null,null,null,0]
["Baranov","Aleksei",502623,"JTSN",null,0,null,null,null,null,null,null,null,null,null,0]
["Nevski","Jevgeni",506517,"JTSN",null,0,null,null,null,null,null,null,null,null,null,0]
["Petrov","Dmitri",502246,"JTSN",null,0,null,null,null,null,null,null,null,null,null,0]
["Plotnikov","Igor",502814,"JTSN",null,0,null,null,null,null,null,null,null,null,null,0]
["Sofjin","Andrei",506524,"JTSN",null,0,null,null,null,null,null,null,null,null,null,0]
["Veltbach","Artur",502622,"JTSN",null,0,null,null,null,null,null,null,null,null,null,0]
["Barkalov","Sergei",100107,"JTSTST",null,0,null,null,null,null,null,null,null,null,null,0]
["Hudilainen","Aleksandr",503209,"JTSTST",null,0,null,null,null,null,null,null,null,null,null,0]
["Ivanov","Artur",503106,"JTSTST",null,0,null,null,null,null,null,null,null,null,null,0]
["Nikodjuk","Maksim",502347,"JTSTST",null,0,null,null,null,null,null,null,null,null,null,0]
["Ott","Jaan",502331,"JTSTST",null,0,null,null,null,null,null,null,null,null,null,0]
["Saarem","Mart",502335,"JTSTST",null,0,null,null,null,null,null,null,null,null,null,0]
["Serkin","Jüri",502390,"JTSTST",null,0,null,null,null,null,null,null,null,null,null,0]
["Šalajev","Igor",503157,"JTSTST",null,0,null,null,null,null,null,null,null,null,null,0]
["Türk","Kalju",503186,"JTSTST",null,0,null,null,null,null,null,null,null,null,null,0]
["Valdmann","Aleksandr",502791,"JTSTST",null,0,null,null,null,null,null,null,null,null,null,0]
["Palmiste","Lea",501142,"JTWH",null,0,null,null,null,null,null,null,null,null,null,0]
["Vassin","Dmitri",503232,"JTWH",null,0,null,null,null,null,null,null,null,null,null,0]
["Matteus","Karmen",100398,"JTWH",null,0,null,null,null,null,null,null,null,null,null,0]
["Borovkov","Vjatšeslav",503261,"JTWH",null,{"$f":"IF(D200=\"JT43\",IF(COUNTIF(G200:M200,3)+COUNTIF(G200:M200,4)<1,0,IF(COUNTIF(G200:M200,3)+COUNTIF(G200:M200,4)=1,2,IF(COUNTIF(G200:M200,3)+COUNTIF(G200:M200,4)>1,4,0))),IF(COUNTIF(G200:M200,2)+COUNTIF(G200:M200,3)+COUNTIF(G200:M200,4)=1,2,IF(COUNTIF(G200:M200,2)+COUNTIF(G200:M200,3)+COUNTIF(G200:M200,4)>1,4,0)))","v":0},null,null,null,null,null,null,null,null,null,{"$f":"IF(D200=\"JT67\",IF(COUNTIF(Q200:S200,3)+COUNTIF(Q200:S200,4)<1,0,IF(COUNTIF(Q200:S200,3)+COUNTIF(Q200:S200,4)=1,2,IF(COUNTIF(Q200:S200,3)+COUNTIF(Q200:S200,4)>1,4,0))),IF(COUNTIF(Q200:S200,2)+COUNTIF(Q200:S200,3)+COUNTIF(Q200:S200,4)>0,2,0))","v":0}]
["Trizno","Sergei",502798,"JTWH",null,0,null,null,null,null,null,null,null,null,null,0]
["Baranov","Eduard",502893,"JTWH",null,0,null,null,null,null,null,null,null,null,null,0]
["Giritšev","Aleksei",900206,"JTWH",null,0,null,null,null,null,null,null,null,null,null,0]
["Golovanov","Andrei",502906,"JTWH",null,0,null,null,null,null,null,null,null,null,null,0]
["Vesk","Toivo",900270,"JTWH",null,0,null,null,null,null,null,null,null,null,null,0]
["Mäeväli","Maret",900331,"JTWH",null,0,null,null,null,null,null,null,null,null,null,0]
["Filatov","Aleksandr",900447,"JTWH",null,0,null,null,null,null,null,null,null,null,null,0]
["Kuzmin","Aleksandr",900459,"JTWH",null,0,null,null,null,null,null,null,null,null,null,0]
["Heinloo","Andrus",100003,"JTWH",null,0,null,null,null,null,null,null,null,null,null,0]
["Tšvertko","Maksim",900216,"JTWH",null,0,null,null,null,null,null,null,null,null,null,0]
["Pihl","Aulike",100356,"JTWH",null,0,null,null,null,null,null,null,null,null,null,0]
["Põkka","Valeri ",100420,"JTWH",null,0,null,null,null,null,null,null,null,null,null,0]
["Dobrodomov","Aleksandr",100063,"JTVPI",null,0,null,null,null,null,null,null,null,null,null,0]
["Grigel","Aleksandr",503016,"JTVPI",null,0,null,null,null,null,null,null,null,null,null,0]
["Krasnikov","Sergei",502303,"JT68",null,0,null,null,null,null,null,null,null,null,null,0]
["Ossipov","Sergei",502258,"JTVPI",null,0,null,null,null,null,null,null,null,null,null,0]
["Parfenov","Sergey",502849,"JTVPI",null,0,null,null,null,null,null,null,null,null,null,0]
["Rostovski","Andrei",502262,"JTVPI",null,0,null,null,null,null,null,null,null,null,null,0]
["Volkov","Maksim",502898,"JTVPI",null,0,null,null,null,null,null,null,null,null,null,0]

{"sheet":"Лист1","index":1,"n_rows":0,"n_cols":0,"rows_kept":0,"cut":false,"hidden":false,"merged":[]}

{"sheet":"Лист2","index":2,"n_rows":0,"n_cols":0,"rows_kept":0,"cut":false,"hidden":false,"merged":[]}